fUSD/lending_fUSD_20250616
["ID","MTS","AMOUNT","RATE_DAILY","PERIOD"]
[366100333,1750062640991,-500.0,0.00016438,2]
[366100334,1750062641002,-500.0,0.00016438,2]
[366100335,1750062641013,-500.0,0.00016438,2]
[366100336,1750062641023,-593.17536231,0.00016438,2]
[366100337,1750062641034,-490.0,0.00016438,2]
[366100338,1750062641044,-490.0,0.00016438,2]
[366100339,1750062641056,-501.10220803,0.00016438,2]
[366100340,1750062641068,-490.0,0.00016438,2]
[366100341,1750062641079,-490.0,0.00016438,2]
[366100342,1750062641090,-490.0,0.00016438,2]
[366100343,1750062641102,-490.0,0.00016438,2]
[366100344,1750062641113,-597.3,0.00016438,2]
[366100345,1750062641124,-490.0,0.00016438,2]
[366100346,1750062641135,-650.93,0.00016438,2]
[366100347,1750062641146,-490.0,0.00016438,2]
[366100348,1750062641172,-250.0,0.00016438,2]
[366100349,1750062641183,-490.0,0.00016438,2]
[366100350,1750062641195,-554.83,0.00016438,2]
[366100351,1750062641206,-490.0,0.00016438,2]
[366100352,1750062641217,-490.0,0.00016438,2]
[366100353,1750062641228,-490.0,0.00016438,2]
[366100354,1750062641243,-490.0,0.00016438,2]
[366100355,1750062641255,-490.0,0.00016438,2]
[366100356,1750062641267,-490.0,0.00016438,2]
[366100357,1750062641279,-490.0,0.00016438,2]
[366100358,1750062641292,-490.0,0.00016438,2]
[366100359,1750062641304,-490.0,0.00016438,2]
[366100360,1750062641315,-631.84,0.00016438,2]
[366100361,1750062641328,-490.0,0.00016438,2]
[366100362,1750062641340,-490.0,0.00016438,2]
[366100363,1750062641352,-490.0,0.00016438,2]
[366100364,1750062641364,-490.0,0.00016438,2]
[366100365,1750062641376,-490.0,0.00016438,2]
[366100366,1750062641388,-460.67086211,0.00016438,2]
[366100367,1750062641399,-490.0,0.00016438,2]
[366100368,1750062641411,-490.0,0.00016438,2]
[366100369,1750062641424,-490.0,0.00016438,2]
[366100370,1750062641436,-542.81,0.00016438,2]
[366100371,1750062641448,-490.0,0.00016438,2]
[366100372,1750062641460,-490.0,0.00016438,2]
[366100373,1750062641472,-373.79987245,0.00016438,2]
[366100374,1750062641483,-490.0,0.00016438,2]
[366100375,1750062641495,-490.0,0.00016438,2]
[366100376,1750062641508,-534.2,0.00016438,2]
[366100377,1750062641519,-490.0,0.00016438,2]
[366100378,1750062641532,-525.8,0.00016438,2]
[366100379,1750062641544,-490.0,0.00016438,2]
[366100380,1750062641556,-490.0,0.00016438,2]
[366100381,1750062641568,-490.0,0.00016438,2]
[366100382,1750062641580,-490.0,0.00016438,2]
[366100383,1750062641600,-490.0,0.00016438,2]
[366100384,1750062641614,-490.0,0.00016438,2]
[366100385,1750062641628,-405.66006389,0.00016438,2]
[366100386,1750062641642,-490.0,0.00016438,2]
[366100387,1750062641656,-490.0,0.00016438,2]
[366100388,1750062641670,-490.0,0.00016438,2]
[366100389,1750062641683,-490.0,0.00016438,2]
[366100390,1750062641696,-490.0,0.00016438,2]
[366100391,1750062641708,-499.95443992,0.00016438,2]
[366100392,1750062641720,-490.0,0.00016438,2]
[366100393,1750062641732,-490.0,0.00016438,2]
[366100394,1750062641745,-490.0,0.00016438,2]
[366100395,1750062641758,-490.0,0.00016438,2]
[366100396,1750062641772,-490.0,0.00016438,2]
[366100397,1750062641785,-551.93,0.00016438,2]
[366100398,1750062641799,-490.0,0.00016438,2]
[366100399,1750062641812,-490.0,0.00016438,2]
[366100400,1750062641825,-490.0,0.00016438,2]
[366100401,1750062641837,-490.0,0.00016438,2]
[366100402,1750062641850,-490.0,0.00016438,2]
[366100403,1750062641863,-490.0,0.00016438,2]
[366100404,1750062641876,-490.0,0.00016438,2]
[366100405,1750062641889,-490.0,0.00016438,2]
[366100406,1750062641903,-490.0,0.00016438,2]
[366100407,1750062641916,-490.0,0.00016438,2]
[366100408,1750062641929,-2953.673205,0.00016438,2]
[366100409,1750062641943,-490.0,0.00016438,2]
[366100410,1750062641955,-490.0,0.00016438,2]
[366100411,1750062641967,-490.0,0.00016438,2]
[366100412,1750062641979,-490.0,0.00016438,2]
[366100413,1750062641991,-490.0,0.00016438,2]
[366100414,1750062642002,-490.0,0.00016438,2]
[366100415,1750062642020,-884.91,0.00016438,2]
[366100416,1750062642033,-766.03,0.00016438,2]
[366100417,1750062642046,-490.0,0.00016438,2]
[366100418,1750062642058,-490.0,0.00016438,2]
[366100419,1750062642071,-2074.037067,0.00016438,2]
[366100420,1750062642084,-490.0,0.00016438,2]
[366100421,1750062642100,-803.57,0.00016438,2]
[366100422,1750062642112,-490.0,0.00016438,2]
[366100423,1750062642125,-502.84,0.00016438,2]
[366100424,1750062642138,-490.0,0.00016438,2]
[366100425,1750062642149,-490.0,0.00016438,2]
[366100426,1750062642161,-490.0,0.00016438,2]
[366100427,1750062642173,-490.0,0.00016438,2]
[366100428,1750062642189,-566.6,0.00016438,2]
[366100429,1750062642201,-490.0,0.00016438,2]
[366100430,1750062642213,-490.0,0.00016438,2]
[366100431,1750062642226,-490.0,0.00016438,2]
[366100432,1750062642240,-490.0,0.00016438,2]
[366100433,1750062642253,-423.66342971,0.00016438,2]
[366100434,1750062642265,-490.0,0.00016438,2]
[366100435,1750062642277,-490.0,0.00016438,2]
[366100436,1750062642289,-607.39,0.00016438,2]
[366100437,1750062642301,-490.0,0.00016438,2]
[366100438,1750062642315,-490.0,0.00016438,2]
[366100439,1750062642327,-490.0,0.00016438,2]
[366100440,1750062642340,-952.96,0.00016438,2]
[366100441,1750062642352,-490.0,0.00016438,2]
[366100442,1750062642365,-490.0,0.00016438,2]
[366100443,1750062642377,-497.06,0.00016438,2]
[366100444,1750062642389,-490.0,0.00016438,2]
[366100445,1750062642401,-704.25,0.00016438,2]
[366100446,1750062642414,-569.08,0.00016438,2]
[366100447,1750062642428,-522.11,0.00016438,2]
[366100448,1750062642457,-490.0,0.00016438,2]
[366100449,1750062642471,-405.80420264,0.00016438,2]
[366100450,1750062642488,-490.0,0.00016438,2]
[366100451,1750062642502,-602.29,0.00016438,2]
[366100452,1750062642515,-643.14,0.00016438,2]
[366100453,1750062642527,-1047.39,0.00016438,2]
[366100454,1750062642541,-490.0,0.00016438,2]
[366100455,1750062642555,-153.43757,0.00016438,2]
[366100456,1750062642569,-490.0,0.00016438,2]
[366100457,1750062642584,-739.65,0.00016438,2]
[366100458,1750062642599,-1475.37,0.00016438,2]
[366100459,1750062642615,-490.0,0.00016438,2]
[366100460,1750062642629,-490.0,0.00016438,2]
[366100461,1750062642642,-490.0,0.00016438,2]
[366100462,1750062642655,-490.0,0.00016438,2]
[366100463,1750062642668,-490.0,0.00016438,2]
[366100464,1750062642679,-490.0,0.00016438,2]
[366100465,1750062642693,-681.13,0.00016438,2]
[366100466,1750062642707,-490.0,0.00016438,2]
[366100467,1750062642721,-305.11740735,0.00016438,2]
[366100468,1750062642736,-490.0,0.00016438,2]
[366100469,1750062642750,-490.0,0.00016438,2]
[366100470,1750062642764,-490.0,0.00016438,2]
[366100471,1750062642778,-507.2,0.00016438,2]
[366100472,1750062642793,-150.839059,0.00016438,2]
[366100473,1750062642806,-490.0,0.00016438,2]
[366100474,1750062642819,-386.06768237,0.00016438,2]
[366100475,1750062642833,-490.0,0.00016438,2]
[366100476,1750062642848,-490.0,0.00016438,2]
[366100477,1750062642861,-490.0,0.00016438,2]
[366100478,1750062642874,-490.0,0.00016438,2]
[366100479,1750062642888,-490.0,0.00016438,2]
[366100480,1750062642901,-914.34,0.00016438,2]
[366100481,1750062642914,-490.0,0.00016438,2]
[366100482,1750062642927,-862.08,0.00016438,2]
[366100483,1750062642940,-533.63,0.00016438,2]
[366100484,1750062642953,-490.0,0.00016438,2]
[366100485,1750062642970,-490.0,0.00016438,2]
[366100486,1750062642984,-490.0,0.00016438,2]
[366100487,1750062642998,-490.0,0.00016438,2]
[366100488,1750062643012,-490.0,0.00016438,2]
[366100489,1750062643025,-490.0,0.00016438,2]
[366100490,1750062643036,-490.0,0.00016438,2]
[366100491,1750062643049,-490.0,0.00016438,2]
[366100492,1750062643061,-868.64,0.00016438,2]
[366100494,1750062643075,-490.0,0.00016438,2]
[366100495,1750062643108,-1158.24,0.00016438,2]
[366100496,1750062643123,-602.67,0.00016438,2]
[366100497,1750062643136,-490.0,0.00016438,2]
[366100498,1750062643149,-1116.79,0.00016438,2]
[366100499,1750062643161,-516.08286717,0.00016438,2]
[366100500,1750062643175,-623.56,0.00016438,2]
[366100501,1750062643190,-593.22,0.00016438,2]
[366100502,1750062643211,-1053.99,0.00016438,2]
[366100503,1750062643227,-490.0,0.00016438,2]
[366100504,1750062643245,-490.0,0.00016438,2]
[366100505,1750062643257,-589.45,0.00016438,2]
[366100506,1750062643269,-490.0,0.00016438,2]
[366100507,1750062643281,-1124.68,0.00016438,2]
[366100508,1750062643294,-490.0,0.00016438,2]
[366100509,1750062643309,-490.0,0.00016438,2]
[366100510,1750062643324,-560.59,0.00016438,2]
[366100511,1750062643339,-490.0,0.00016438,2]
[366100512,1750062643355,-490.0,0.00016438,2]
[366100513,1750062643371,-490.0,0.00016438,2]
[366100514,1750062643386,-490.0,0.00016438,2]
[366100515,1750062643400,-302.93,0.00016438,2]
[366100516,1750062643414,-1396.05,0.00016438,2]
[366100518,1750062643429,-490.0,0.00016438,2]
[366100523,1750062643468,-545.33,0.00016438,2]
[366100525,1750062643483,-490.0,0.00016438,2]
[366100528,1750062643498,-512.27,0.00016438,2]
[366100530,1750062643512,-490.0,0.00016438,2]
[366100532,1750062643527,-690.68,0.00016438,2]
[366100534,1750062643542,-490.0,0.00016438,2]
[366100535,1750062643557,-490.0,0.00016438,2]
[366100536,1750062643570,-490.0,0.00016438,2]
[366100537,1750062643584,-858.66,0.00016438,2]
[366100538,1750062643599,-880.88,0.00016438,2]
[366100539,1750062643612,-1118.6,0.00016438,2]
[366100540,1750062643627,-687.94,0.00016438,2]
[366100541,1750062643642,-490.0,0.00016438,2]
[366100542,1750062643660,-894.64,0.00016438,2]
[366100543,1750062643674,-490.0,0.00016438,2]
[366100544,1750062643688,-490.0,0.00016438,2]
[366100545,1750062643702,-490.0,0.00016438,2]
[366100546,1750062643716,-578.49,0.00016438,2]
[366100547,1750062643730,-955.02,0.00016438,2]
[366100548,1750062643743,-490.0,0.00016438,2]
[366100549,1750062643756,-1169.42,0.00016438,2]
[366100550,1750062643770,-551.87,0.00016438,2]
[366100551,1750062643784,-521.6,0.00016438,2]
[366100552,1750062643798,-490.0,0.00016438,2]
[366100553,1750062643811,-490.0,0.00016438,2]
[366100554,1750062643824,-490.0,0.00016438,2]
[366100555,1750062643837,-490.0,0.00016438,2]
[366100556,1750062643850,-490.0,0.00016438,2]
[366100557,1750062643863,-1093.5,0.00016438,2]
[366100558,1750062643876,-490.0,0.00016438,2]
[366100559,1750062643889,-603.54,0.00016438,2]
[366100560,1750062643902,-490.0,0.00016438,2]
[366100561,1750062643916,-873.95,0.00016438,2]
[366100562,1750062643929,-490.0,0.00016438,2]
[366100563,1750062643941,-601.85,0.00016438,2]
[366100564,1750062643955,-534.13,0.00016438,2]
[366100565,1750062643968,-490.0,0.00016438,2]
[366100566,1750062643980,-490.0,0.00016438,2]
[366100567,1750062643993,-490.0,0.00016438,2]
[366100568,1750062644005,-671.23,0.00016438,2]
[366100569,1750062644017,-562.98,0.00016438,2]
[366100570,1750062644029,-1691.19,0.00016438,2]
[366100571,1750062644042,-490.0,0.00016438,2]
[366100572,1750062644054,-490.0,0.00016438,2]
[366100573,1750062644066,-631.48,0.00016438,2]
[366100574,1750062644079,-490.0,0.00016438,2]
[366100575,1750062644091,-490.0,0.00016438,2]
[366100576,1750062644103,-547.29,0.00016438,2]
[366100577,1750062644116,-1024.24,0.00016438,2]
[366100578,1750062644130,-490.0,0.00016438,2]
[366100579,1750062644142,-994.49,0.00016438,2]
[366100580,1750062644154,-599.82,0.00016438,2]
[366100581,1750062644167,-490.0,0.00016438,2]
[366100582,1750062644180,-1883.91,0.00016438,2]
[366100583,1750062644193,-490.0,0.00016438,2]
[366100584,1750062644205,-852.72,0.00016438,2]
[366100585,1750062644218,-523.37,0.00016438,2]
[366100586,1750062644231,-490.0,0.00016438,2]
[366100587,1750062644247,-490.0,0.00016438,2]
[366100588,1750062644259,-490.0,0.00016438,2]
[366100589,1750062644272,-490.0,0.00016438,2]
[366100590,1750062644285,-511.99,0.00016438,2]
[366100591,1750062644297,-490.0,0.00016438,2]
[366100592,1750062644310,-490.0,0.00016438,2]
[366100593,1750062644323,-490.0,0.00016438,2]
[366100594,1750062644336,-490.0,0.00016438,2]
[366100595,1750062644348,-490.0,0.00016438,2]
[366100596,1750062644360,-1422.1,0.00016438,2]
[366100597,1750062644373,-1293.41,0.00016438,2]
[366100598,1750062644385,-630.72,0.00016438,2]
[366100599,1750062644396,-490.0,0.00016438,2]
[366100600,1750062644408,-490.0,0.00016438,2]
[366100601,1750062644420,-490.0,0.00016438,2]
[366100602,1750062644432,-507.53,0.00016438,2]
[366100603,1750062644444,-490.0,0.00016438,2]
[366100604,1750062644456,-541.71,0.00016438,2]
[366100605,1750062644468,-593.76,0.00016438,2]
[366100606,1750062644480,-490.0,0.00016438,2]
[366100607,1750062644492,-490.0,0.00016438,2]
[366100608,1750062644505,-526.59,0.00016438,2]
[366100609,1750062644517,-490.0,0.00016438,2]
[366100610,1750062644528,-529.96,0.00016438,2]
[366100611,1750062644540,-1023.89,0.00016438,2]
[366100612,1750062644552,-1393.33,0.00016438,2]
[366100613,1750062644564,-1859.6,0.00016438,2]
[366100614,1750062644576,-490.0,0.00016438,2]
[366100615,1750062644589,-490.0,0.00016438,2]
[366100616,1750062644602,-1122.93,0.00016438,2]
[366100617,1750062644613,-876.26,0.00016438,2]
[366100618,1750062644625,-1552.62,0.00016438,2]
[366100619,1750062644637,-1007.91,0.00016438,2]
[366100620,1750062644649,-490.0,0.00016438,2]
[366100621,1750062644662,-490.0,0.00016438,2]
[366100622,1750062644675,-341.66364328,0.00016438,2]
[366100623,1750062644687,-490.0,0.00016438,2]
[366100624,1750062644698,-1988.72,0.00016438,2]
[366100625,1750062644710,-1011.72,0.00016438,2]
[366100626,1750062644722,-490.0,0.00016438,2]
[366100627,1750062644734,-1291.03,0.00016438,2]
[366100628,1750062644745,-490.0,0.00016438,2]
[366100629,1750062644756,-490.0,0.00016438,2]
[366100630,1750062644767,-490.0,0.00016438,2]
[366100631,1750062644780,-737.42,0.00016438,2]
[366100632,1750062644791,-1991.04,0.00016438,2]
[366100633,1750062644802,-490.0,0.00016438,2]
[366100634,1750062644813,-940.56,0.00016438,2]
[366100635,1750062644824,-490.0,0.00016438,2]
[366100636,1750062644836,-1004.93,0.00016438,2]
[366100637,1750062644848,-490.0,0.00016438,2]
[366100638,1750062644859,-490.0,0.00016438,2]
[366100639,1750062644871,-1468.77,0.00016438,2]
[366100640,1750062644883,-1102.49,0.00016438,2]
[366100641,1750062644895,-490.0,0.00016438,2]
[366100642,1750062644907,-490.0,0.00016438,2]
[366100643,1750062644919,-490.0,0.00016438,2]
[366100644,1750062644931,-490.0,0.00016438,2]
[366100645,1750062644942,-490.0,0.00016438,2]
[366100646,1750062644954,-1676.44,0.00016438,2]
[366100647,1750062644965,-490.0,0.00016438,2]
[366100648,1750062644975,-689.74,0.00016438,2]
[366100649,1750062644988,-1790.76,0.00016438,2]
[366100650,1750062644999,-490.0,0.00016438,2]
[366100651,1750062645011,-490.0,0.00016438,2]
[366100652,1750062645023,-648.04,0.00016438,2]
[366100653,1750062645034,-490.0,0.00016438,2]
[366100654,1750062645046,-1149.02,0.00016438,2]
[366100655,1750062645057,-490.0,0.00016438,2]
[366100656,1750062645068,-490.0,0.00016438,2]
[366100657,1750062645079,-490.0,0.00016438,2]
[366100658,1750062645091,-490.0,0.00016438,2]
[366100659,1750062645102,-518.15,0.00016438,2]
[366100660,1750062645113,-490.0,0.00016438,2]
[366100661,1750062645124,-490.0,0.00016438,2]
[366100662,1750062645136,-1156.87,0.00016438,2]
[366100663,1750062645147,-1315.49,0.00016438,2]
[366100664,1750062645158,-1122.46,0.00016438,2]
[366100665,1750062645169,-749.0,0.00016438,2]
[366100666,1750062645180,-1309.51,0.00016438,2]
[366100667,1750062645191,-490.0,0.00016438,2]
[366100668,1750062645203,-490.0,0.00016438,2]
[366100669,1750062645214,-799.96,0.00016438,2]
[366100670,1750062645226,-1660.6,0.00016438,2]
[366100671,1750062645240,-490.0,0.00016438,2]
[366100672,1750062645251,-490.0,0.00016438,2]
[366100673,1750062645262,-490.0,0.00016438,2]
[366100674,1750062645275,-490.0,0.00016438,2]
[366100675,1750062645295,-953.45,0.00016438,2]
[366100676,1750062645313,-490.0,0.00016438,2]
[366100677,1750062645324,-858.63,0.00016438,2]
[366100678,1750062645335,-490.0,0.00016438,2]
[366100679,1750062645347,-670.87,0.00016438,2]
[366100680,1750062645359,-489.45315941,0.00016438,2]
[366100681,1750062645370,-490.0,0.00016438,2]
[366100682,1750062645382,-490.0,0.00016438,2]
[366100683,1750062645393,-1516.18,0.00016438,2]
[366100684,1750062645405,-1196.73,0.00016438,2]
[366100685,1750062645417,-570.38,0.00016438,2]
[366100686,1750062645429,-490.0,0.00016438,2]
[366100687,1750062645440,-490.0,0.00016438,2]
[366100688,1750062645452,-634.95,0.00016438,2]
[366100689,1750062645464,-841.0,0.00016438,2]
[366100690,1750062645476,-1472.69,0.00016438,2]
[366100691,1750062645487,-531.64,0.00016438,2]
[366100692,1750062645499,-490.0,0.00016438,2]
[366100693,1750062645511,-490.0,0.00016438,2]
[366100694,1750062645523,-490.0,0.00016438,2]
[366100695,1750062645535,-632.02,0.00016438,2]
[366100696,1750062645547,-650.17,0.00016438,2]
[366100697,1750062645559,-1811.7,0.00016438,2]
[366100698,1750062645572,-1255.68,0.00016438,2]
[366100699,1750062645583,-490.0,0.00016438,2]
[366100700,1750062645596,-831.54,0.00016438,2]
[366100701,1750062645607,-490.0,0.00016438,2]
[366100702,1750062645619,-1625.85,0.00016438,2]
[366100703,1750062645631,-506.78,0.00016438,2]
[366100704,1750062645643,-790.77,0.00016438,2]
[366100705,1750062645658,-665.71,0.00016438,2]
[366100706,1750062645671,-548.35,0.00016438,2]
[366100707,1750062645683,-1571.85,0.00016438,2]
[366100708,1750062645694,-490.0,0.00016438,2]
[366100709,1750062645706,-490.0,0.00016438,2]
[366100710,1750062645718,-490.0,0.00016438,2]
[366100711,1750062645730,-490.0,0.00016438,2]
[366100715,1750062646572,-490.0,0.00016438,2]
[366100718,1750062646603,-490.0,0.00016438,2]
[366100722,1750062646629,-596.53,0.00016438,2]
[366100726,1750062646658,-1046.29,0.00016438,2]
[366100730,1750062646694,-490.0,0.00016438,2]
[366100731,1750062646711,-490.0,0.00016438,2]
[366100732,1750062646721,-1893.73,0.00016438,2]
[366100733,1750062646731,-534.46,0.00016438,2]
[366100734,1750062646742,-914.03,0.00016438,2]
[366100735,1750062646751,-490.0,0.00016438,2]
[366100736,1750062646761,-492.26547634,0.00016438,2]
[366100737,1750062646771,-490.0,0.00016438,2]
[366100738,1750062646782,-1001.03,0.00016438,2]
[366100739,1750062646791,-1168.25,0.00016438,2]
[366100740,1750062646801,-490.0,0.00016438,2]
[366100741,1750062646811,-332.37257497,0.00016438,2]
[366100742,1750062646821,-490.0,0.00016438,2]
[366100743,1750062646832,-490.0,0.00016438,2]
[366100744,1750062646842,-490.0,0.00016438,2]
[366100745,1750062646851,-505.62,0.00016438,2]
[366100746,1750062646861,-1824.7,0.00016438,2]
[366100747,1750062646871,-490.0,0.00016438,2]
[366100748,1750062646880,-4264.52,0.00016438,2]
[366100749,1750062646890,-490.0,0.00016438,2]
[366100750,1750062646900,-1008.05,0.00016438,2]
[366100751,1750062646910,-490.0,0.00016438,2]
[366100752,1750062646920,-490.0,0.00016438,2]
[366100753,1750062646930,-490.0,0.00016438,2]
[366100754,1750062646939,-1085.02,0.00016438,2]
[366100755,1750062646949,-490.0,0.00016438,2]
[366100756,1750062646958,-686.19,0.00016438,2]
[366100757,1750062646969,-490.0,0.00016438,2]
[366100758,1750062646978,-1491.71,0.00016438,2]
[366100759,1750062646989,-490.0,0.00016438,2]
[366100760,1750062646999,-519.06,0.00016438,2]
[366100761,1750062647009,-440.47452548,0.00016438,2]
[366100762,1750062647018,-1874.04,0.00016438,2]
[366100763,1750062647028,-490.0,0.00016438,2]
[366100764,1750062647038,-2533.62,0.00016438,2]
[366100765,1750062647048,-490.0,0.00016438,2]
[366100766,1750062647058,-3325.95,0.00016438,2]
[366100767,1750062647067,-2005.5,0.00016438,2]
[366100768,1750062647078,-589.22,0.00016438,2]
[366100769,1750062647089,-3812.77,0.00016438,2]
[366100770,1750062647100,-490.0,0.00016438,2]
[366100771,1750062647111,-514.42,0.00016438,2]
[366100772,1750062647121,-1414.69,0.00016438,2]
[366100773,1750062647131,-490.0,0.00016438,2]
[366100774,1750062647143,-561.44,0.00016438,2]
[366100775,1750062647152,-490.0,0.00016438,2]
[366100776,1750062647162,-1499.17,0.00016438,2]
[366100777,1750062647173,-721.15,0.00016438,2]
[366100778,1750062647182,-2627.72,0.00016438,2]
[366100779,1750062647192,-588.4,0.00016438,2]
[366100780,1750062647203,-1020.29,0.00016438,2]
[366100781,1750062647212,-490.0,0.00016438,2]
[366100782,1750062647222,-1331.46,0.00016438,2]
[366100783,1750062647232,-490.0,0.00016438,2]
[366100784,1750062647244,-905.98,0.00016438,2]
[366100785,1750062647254,-490.0,0.00016438,2]
[366100786,1750062647263,-542.3,0.00016438,2]
[366100787,1750062647273,-794.76,0.00016438,2]
[366100788,1750062647284,-490.0,0.00016438,2]
[366100789,1750062647295,-1207.5,0.00016438,2]
[366100790,1750062647305,-1648.51,0.00016438,2]
[366100791,1750062647315,-490.0,0.00016438,2]
[366100792,1750062647326,-961.24,0.00016438,2]
[366100793,1750062647336,-4761.76,0.00016438,2]
[366100794,1750062647346,-3245.86,0.00016438,2]
[366100795,1750062647356,-15906.07,0.00016438,2]
[366100796,1750062647366,-490.0,0.00016438,2]
[366100797,1750062647376,-669.36,0.00016438,2]
[366100798,1750062647386,-817.07,0.00016438,2]
[366100799,1750062647395,-3146.31,0.00016438,2]
[366100800,1750062647405,-2326.02,0.00016438,2]
[366100801,1750062647414,-490.0,0.00016438,2]
[366100802,1750062647424,-490.0,0.00016438,2]
[366100803,1750062647433,-4336.81,0.00016438,2]
[366100804,1750062647443,-2338.84,0.00016438,2]
[366100805,1750062647453,-1385.04,0.00016438,2]
[366100806,1750062647463,-1216.25,0.00016438,2]
[366100807,1750062647473,-6819.24,0.00016438,2]
[366100808,1750062647483,-490.0,0.00016438,2]
[366100809,1750062647493,-490.0,0.00016438,2]
[366100810,1750062647503,-2732.22,0.00016438,2]
[366100811,1750062647513,-490.0,0.00016438,2]
[366100812,1750062647523,-2021.22,0.00016438,2]
[366100813,1750062647533,-1541.83,0.00016438,2]
[366100814,1750062647543,-1343.86,0.00016438,2]
[366100815,1750062647553,-654.95,0.00016438,2]
[366100816,1750062647563,-493.11991115,0.00016438,2]
[366100817,1750062647573,-4442.57,0.00016438,2]
[366100818,1750062647583,-1096.65,0.00016438,2]
[366100819,1750062647592,-490.0,0.00016438,2]
[366100820,1750062647602,-2158.96,0.00016438,2]
[366100821,1750062647611,-490.0,0.00016438,2]
[366100822,1750062647622,-490.0,0.00016438,2]
[366100823,1750062647632,-537.04,0.00016438,2]
[366100824,1750062647642,-3749.01,0.00016438,2]
[366100825,1750062647652,-490.0,0.00016438,2]
[366100826,1750062647662,-1311.78,0.00016438,2]
[366100827,1750062647673,-1685.4,0.00016438,2]
[366100828,1750062647683,-804.15,0.00016438,2]
[366100829,1750062647692,-540.72,0.00016438,2]
[366100830,1750062647702,-2628.24,0.00016438,2]
[366100831,1750062647713,-1631.4,0.00016438,2]
[366100832,1750062647723,-490.0,0.00016438,2]
[366100833,1750062647733,-2178.55,0.00016438,2]
[366100834,1750062647743,-1002.15,0.00016438,2]
[366100835,1750062647753,-2349.24,0.00016438,2]
[366100836,1750062647763,-9480.06,0.00016438,2]
[366100837,1750062647773,-490.0,0.00016438,2]
[366100838,1750062647783,-3602.38,0.00016438,2]
[366100839,1750062647792,-490.0,0.00016438,2]
[366100840,1750062647802,-750.69,0.00016438,2]
[366100841,1750062647812,-490.0,0.00016438,2]
[366100842,1750062647821,-4395.55,0.00016438,2]
[366100843,1750062647831,-490.0,0.00016438,2]
[366100844,1750062647840,-1515.28,0.00016438,2]
[366100845,1750062647850,-490.0,0.00016438,2]
[366100846,1750062647859,-490.0,0.00016438,2]
[366100847,1750062647869,-490.0,0.00016438,2]
[366100848,1750062647878,-1275.24,0.00016438,2]
[366100849,1750062647888,-1326.33,0.00016438,2]
[366100850,1750062647898,-8410.4,0.00016438,2]
[366100851,1750062647907,-490.0,0.00016438,2]
[366100852,1750062647917,-563.72,0.00016438,2]
[366100853,1750062647927,-2160.73,0.00016438,2]
[366100854,1750062647937,-1761.55,0.00016438,2]
[366100855,1750062647946,-453.10325061,0.00016438,2]
[366100856,1750062647956,-1901.2,0.00016438,2]
[366100857,1750062647965,-490.0,0.00016438,2]
[366100858,1750062647975,-6107.91,0.00016438,2]